bitfinex/quotes_BTCUSD_20250515
["timestamp","ask_amount","ask_price","bid_price","bid_amount"]
[1747292496467,0.0293212,102310.0,102300.0,0.65819121]
[1747292497030,0.00977345,102310.0,102300.0,0.78700061]
[1747292497237,0.22487479,102320.0,102310.0,0.20525833]
[1747292497661,0.23130192,102320.0,102310.0,0.20525833]
[1747292497863,0.23130192,102320.0,102310.0,0.20525852]
[1747292498534,0.22152876,102320.0,102310.0,0.20525852]
[1747292499054,0.22352876,102320.0,102310.0,0.20525852]
[1747292499341,0.22352876,102320.0,102310.0,0.00977421]
[1747292499498,0.24722978,102320.0,102310.0,0.00977421]
[1747292499925,0.23745652,102320.0,102310.0,0.00977421]
[1747292500240,0.00977402,102310.0,102300.0,0.77722507]
[1747292500787,0.22480646,102310.0,102300.0,0.35267133]
[1747292501003,0.24120646,102310.0,102300.0,0.62862686]
[1747292501230,0.25760646,102310.0,102300.0,0.46643169]
[1747292501469,0.24783254,102310.0,102300.0,0.25536203]
[1747292501677,0.23805852,102310.0,102300.0,0.05985861]
[1747292501886,0.22928431,102310.0,102300.0,0.25536203]
[1747292502094,0.22928431,102310.0,102300.0,0.05985861]
[1747292502307,0.22928431,102310.0,102300.0,0.28468676]
[1747292502770,0.06312187,102310.0,102300.0,0.29446126]
[1747292503184,0.04672187,102310.0,102300.0,0.29446126]
[1747292503800,0.03694775,102310.0,102300.0,0.29446126]
[1747292504412,0.01077345,102310.0,102300.0,0.29446126]
[1747292504651,0.001,102310.0,102300.0,0.32516126]
[1747292505500,0.01077335,102310.0,102300.0,0.32516126]
[1747292505710,0.001,102310.0,102300.0,0.32516126]
[1747292506975,0.01077345,102310.0,102300.0,0.32516126]
[1747292507351,0.01077345,102310.0,102300.0,0.29446126]
[1747292507966,0.001,102310.0,102300.0,0.29446126]
[1747292508225,0.01077345,102310.0,102300.0,0.32566126]
[1747292510009,0.001,102310.0,102300.0,0.32566126]
[1747292510273,0.001,102310.0,102300.0,0.42297066]
[1747292510493,0.001,102310.0,102300.0,0.8403214]
[1747292510952,0.00510102,102320.0,102300.0,0.8403214]
[1747292510953,0.01487342,102320.0,102310.0,0.2248058]
[1747292511202,0.00510102,102320.0,102310.0,1.0754752]
[1747292511451,0.01954298,102330.0,102320.0,0.22478382]
[1747292511710,0.06601376,102340.0,102330.0,0.23453396]
[1747292511965,0.07578511,102340.0,102330.0,0.23453396]
[1747292512208,0.04647107,102340.0,102330.0,0.23453396]
[1747292512416,0.03441281,102340.0,102330.0,0.23453396]
[1747292512623,0.03441281,102340.0,102330.0,0.25220452]
[1747292512839,0.04418396,102340.0,102330.0,0.25220452]
[1747292513049,0.06068396,102340.0,102330.0,0.25220452]
[1747292513586,0.07045521,102340.0,102330.0,0.25220452]
[1747292513789,0.04418396,102340.0,102330.0,0.25220452]
[1747292513948,0.04618396,102340.0,102330.0,0.25220452]
[1747292514149,0.03941281,102340.0,102330.0,0.25220452]
[1747292514551,0.03941271,102340.0,102330.0,0.25220452]
[1747292515174,0.03941271,102340.0,102330.0,0.44364452]
[1747292515582,0.02964175,102340.0,102330.0,0.44364452]
[1747292515791,0.03941271,102340.0,102330.0,0.44364452]
[1747292516207,0.02964175,102340.0,102330.0,0.44364452]
[1747292516424,0.03941271,102340.0,102330.0,0.44364452]
[1747292516651,0.01987098,102340.0,102330.0,0.44364452]
[1747292516870,0.01987107,102340.0,102330.0,0.47494452]
[1747292517078,0.02964184,102340.0,102330.0,0.47494452]
[1747292517697,0.02764184,102340.0,102330.0,0.47494452]
[1747292517908,0.02464184,102340.0,102330.0,0.47494452]
[1747292518123,0.01587107,102340.0,102330.0,0.45741924]
[1747292518745,0.00510049,102340.0,102330.0,0.45741924]
[1747292518978,0.01487107,102340.0,102330.0,0.45841924]
[1747292519158,0.01487098,102340.0,102330.0,0.46041924]
[1747292519580,0.02464166,102340.0,102330.0,0.65189924]
[1747292520169,0.01487117,102340.0,102330.0,0.74920864]
[1747292520372,0.02464204,102340.0,102330.0,0.74920864]
[1747292520621,0.07548425,102340.0,102330.0,0.62051924]
[1747292520856,0.26114047,102340.0,102330.0,0.40949588]
[1747292521153,0.26114047,102340.0,102330.0,0.21813588]
[1747292521374,0.06571347,102340.0,102330.0,0.23768]
[1747292521635,0.06571347,102340.0,102330.0,0.24745182]
[1747292521860,0.07548472,102340.0,102330.0,0.24745068]
[1747292522331,0.06571347,102340.0,102330.0,0.24745068]
[1747292522775,0.26114047,102340.0,102330.0,0.23767905]
[1747292522995,0.06571347,102340.0,102330.0,0.24745068]
[1747292526043,0.07548472,102340.0,102330.0,0.24745068]
[1747292526251,0.06571347,102340.0,102330.0,0.24745068]
[1747292527191,0.06571338,102340.0,102330.0,0.24745068]
[1747292527385,0.05061338,102340.0,102330.0,0.24745068]
[1747292527590,0.04084232,102340.0,102330.0,0.24745068]
[1747292529257,0.04084184,102340.0,102330.0,0.24745068]
[1747292529454,0.01487107,102340.0,102330.0,0.24745068]
[1747292529739,0.02464175,102340.0,102330.0,0.24745068]
[1747292529927,0.03441262,102340.0,102330.0,0.43877068]
[1747292530366,0.02464175,102340.0,102330.0,0.43877068]
[1747292531139,0.04418377,102340.0,102330.0,0.24745068]
[1747292531343,0.05081262,102340.0,102330.0,0.43873068]
[1747292532726,0.00510049,102340.0,102330.0,0.43873068]
[1747292532865,0.02464175,102340.0,102330.0,0.43873068]
[1747292533047,0.02464175,102340.0,102330.0,0.24745068]
[1747292533264,0.03441252,102340.0,102330.0,0.63001068]
[1747292536070,0.02464175,102340.0,102330.0,0.63001068]
[1747292536441,0.03441252,102340.0,102330.0,0.63001068]
[1747292537750,0.03441252,102340.0,102330.0,0.63005068]
[1747292538169,0.01487098,102340.0,102330.0,0.63005068]
[1747292538391,0.02464156,102340.0,102330.0,0.63005068]
[1747292538731,0.00510049,102340.0,102330.0,0.66149068]
[1747292538945,0.01487098,102340.0,102330.0,0.66149068]
[1747292539145,0.00510049,102340.0,102330.0,0.75880008]
[1747292540177,0.00510049,102340.0,102330.0,1.09880008]
[1747292540957,0.07057546,102360.0,102350.0,0.22471794]
[1747292541155,0.05613624,102360.0,102350.0,0.22471794]
[1747292541402,0.0344051,102360.0,102350.0,0.22471794]
[1747292541913,0.00509899,102360.0,102350.0,0.22471794]
[1747292542124,0.00509899,102360.0,102350.0,0.23939269]
[1747292542333,0.00509899,102360.0,102350.0,1.07534209]
[1747292542579,0.00809899,102360.0,102350.0,1.09064209]
[1747292543164,0.00509899,102360.0,102350.0,1.09064209]
[1747292543362,0.00509899,102360.0,102350.0,1.09164209]
[1747292543564,0.00509899,102360.0,102350.0,0.70900209]
[1747292543822,0.24509469,102360.0,102350.0,0.55108266]
[1747292544028,0.26299546,102360.0,102350.0,0.56085296]
[1747292544237,0.26099546,102360.0,102350.0,0.77199307]
[1747292544446,0.26099546,102360.0,102350.0,0.22085296]
[1747292544648,0.26099546,102360.0,102350.0,0.22285296]
[1747292544854,0.26099546,102360.0,102350.0,0.23262306]
[1747292545271,0.26099546,102360.0,102350.0,0.24239307]
[1747292546445,0.26099546,102360.0,102350.0,0.23262306]
[1747292546597,0.26099546,102360.0,102350.0,0.24239307]
[1747292547959,0.26099546,102360.0,102350.0,0.25216298]
[1747292548736,0.06560664,102360.0,102350.0,0.25216298]
[1747292548942,0.26343788,102360.0,102350.0,0.25216298]
[1747292549142,0.26099546,102360.0,102350.0,0.25216298]
[1747292550003,0.26099546,102360.0,102350.0,0.2619327]
[1747292550004,0.04970577,102360.0,102350.0,0.2619327]
[1747292550206,0.04417473,102360.0,102350.0,0.2619327]
[1747292550820,0.03440557,102360.0,102350.0,0.2619327]
[1747292551016,0.04417482,102360.0,102350.0,0.2619327]
[1747292551319,0.04417482,102360.0,102350.0,0.27994925]
[1747292551719,0.25476364,102360.0,102350.0,0.27017944]
[1747292551947,0.05937482,102360.0,102350.0,0.27994916]
[1747292552153,0.26453308,102360.0,102350.0,0.46141944]
[1747292552567,0.06914426,102360.0,102350.0,0.47118916]
[1747292552905,0.04960557,102360.0,102350.0,0.47118916]
[1747292553106,0.04417482,102360.0,102350.0,0.47118916]
[1747292554546,0.03440557,102360.0,102350.0,0.47118916]
[1747292554759,0.04417482,102360.0,102350.0,0.47118916]
[1747292554964,0.05917482,102360.0,102350.0,0.47118916]
[1747292555353,0.26956364,102360.0,102350.0,0.27017944]
[1747292555719,0.07417482,102360.0,102350.0,0.27994916]
[1747292555915,0.08394416,102360.0,102350.0,0.27994916]
[1747292556363,0.26956431,102360.0,102350.0,0.26040962]
[1747292556578,0.07417549,102360.0,102350.0,0.27994925]
[1747292556724,0.26223785,102360.0,102350.0,0.26040962]
[1747292556942,0.25979545,102360.0,102350.0,0.26040962]
[1747292557187,0.06440663,102360.0,102350.0,0.27017934]
[1747292557381,0.26956489,102360.0,102350.0,0.27017953]
[1747292557812,0.07417607,102360.0,102350.0,0.27017953]
[1747292558028,0.07417607,102360.0,102350.0,0.27994935]
[1747292558346,0.05917607,102360.0,102350.0,0.27994935]
[1747292558675,0.24479584,102360.0,102350.0,0.27017953]
[1747292558890,0.01486795,102360.0,102350.0,0.27017953]
[1747292559109,0.03440577,102360.0,102350.0,0.27994925]
[1747292559351,0.02463662,102360.0,102350.0,0.27994925]
[1747292559995,0.03440577,102360.0,102350.0,0.27994925]
[1747292560202,0.04417502,102360.0,102350.0,0.27994925]
[1747292560641,0.05394436,102360.0,102350.0,0.27994925]
[1747292560877,0.05394436,102360.0,102350.0,0.27998925]
[1747292561089,0.03440587,102360.0,102350.0,0.27998925]
[1747292565182,0.04417521,102360.0,102350.0,0.27998925]
[1747292566375,0.03440577,102360.0,102350.0,0.27998925]
[1747292566812,0.02463662,102360.0,102350.0,0.27998925]
[1747292567011,0.03440577,102360.0,102350.0,0.27998925]
[1747292567347,0.03440567,102360.0,102350.0,0.27998925]
[1747292567579,0.04417492,102360.0,102350.0,0.27998925]
[1747292567800,0.03440567,102360.0,102350.0,0.27998925]
[1747292568019,0.03440557,102360.0,102350.0,0.27998925]
[1747292568246,0.02463652,102360.0,102350.0,0.27998925]
[1747292568678,0.03440557,102360.0,102350.0,0.27998925]
[1747292568913,0.02463652,102360.0,102350.0,0.27998925]
[1747292569133,0.03440557,102360.0,102350.0,0.27998925]
[1747292569324,0.02463652,102360.0,102350.0,0.27998925]
[1747292570918,0.02463662,102360.0,102350.0,0.27998925]
[1747292571932,0.02463652,102360.0,102350.0,0.27998925]
[1747292572143,0.01486766,102360.0,102350.0,0.27998925]
[1747292572510,0.01486757,102360.0,102350.0,0.27998925]
[1747292572713,0.01486757,102360.0,102350.0,0.31158925]
[1747292572935,0.00509899,102360.0,102350.0,0.31158925]
[1747292573295,0.00509899,102360.0,102350.0,0.40889865]
[1747292574021,0.00509899,102360.0,102350.0,0.74889865]
[1747292574409,0.05516821,102380.0,102370.0,0.22467403]
[1747292574639,0.06026577,102380.0,102370.0,0.2344372]
[1747292575422,0.26856598,102380.0,102370.0,0.00976317]
[1747292575625,0.26960877,102380.0,102370.0,0.21490138]
[1747292575835,0.25984134,102380.0,102370.0,0.21490138]
[1747292576015,0.25007381,102380.0,102370.0,0.00976317]
[1747292576633,0.25207381,102380.0,102370.0,0.00976317]
[1747292577416,0.24907381,102380.0,102370.0,0.00976317]
[1747292577722,0.24807381,102380.0,102370.0,0.00976317]
[1747292577939,0.24907381,102380.0,102370.0,0.00976317]
[1747292578423,0.24907381,102380.0,102370.0,0.01953165]
[1747292578890,0.24907381,102380.0,102370.0,0.21490138]
[1747292579111,0.24907381,102380.0,102370.0,0.23443787]
[1747292579524,0.25884115,102380.0,102370.0,0.23443787]
[1747292580785,0.24907381,102380.0,102370.0,0.21490138]
[1747292581006,0.24907381,102380.0,102370.0,0.01953165]
[1747292581214,0.24907381,102380.0,102370.0,0.23443806]
[1747292583599,0.24907381,102380.0,102370.0,0.22466977]
[1747292584474,0.24907381,102380.0,102370.0,0.23443806]
[1747292584672,0.24907381,102380.0,102370.0,0.24420626]
[1747292586178,0.25884124,102380.0,102370.0,0.24420626]
[1747292586355,0.27814434,102380.0,102370.0,0.25397426]
[1747292586560,0.27814434,102380.0,102370.0,0.24420626]
[1747292587559,0.26837719,102380.0,102370.0,0.24420626]
[1747292588973,0.26837719,102380.0,102370.0,0.25397426]
[1747292589914,0.03189002,102380.0,102370.0,0.25397359]
[1747292590120,0.04165707,102380.0,102370.0,0.25397359]
[1747292590341,0.05142431,102380.0,102370.0,0.25397359]
[1747292590705,0.05142431,102380.0,102370.0,0.28557359]
[1747292590706,0.00758231,102380.0,102370.0,0.28557359]
[1747292592099,0.00758231,102380.0,102370.0,0.62557359]
[1747292594359,0.01734898,102380.0,102370.0,0.62557359]
[1747292594693,0.00758231,102380.0,102370.0,0.62557359]
[1747292595912,0.01734898,102380.0,102370.0,0.62557359]
[1747292596314,0.03688289,102380.0,102370.0,0.59397359]
[1747292596730,0.26493459,102380.0,102370.0,0.01953165]
[1747292596940,0.2149065,102370.0,102360.0,0.04032027]
[1747292597147,0.2476065,102370.0,102360.0,0.04032027]
[1747292597802,0.26214735,102370.0,102360.0,0.04032027]
[1747292598645,0.26214735,102370.0,102360.0,0.04132027]
[1747292599061,0.35945675,102370.0,102360.0,0.001]
[1747292603694,0.45371172,102370.0,102360.0,0.001]
[1747292603901,0.79371172,102370.0,102360.0,0.001]
[1747292604248,0.20515807,102360.0,102350.0,4e-05]
[1747292604451,0.71556747,102360.0,102350.0,4e-05]
[1747292604918,0.73520713,102360.0,102350.0,4e-05]
[1747292605313,1.07520713,102360.0,102350.0,4e-05]
[1747292605717,1.1390579,102360.0,102350.0,4e-05]
[1747292605930,1.1490579,102360.0,102350.0,4e-05]
[1747292606158,1.5818979,102360.0,102350.0,4e-05]
[1747292606383,1.60915244,102360.0,102350.0,4e-05]
[1747292606612,1.59915244,102360.0,102350.0,4e-05]
[1747292606823,1.62848044,102360.0,102350.0,4e-05]
[1747292607063,1.61848044,102360.0,102350.0,4e-05]
[1747292607274,1.62148044,102360.0,102350.0,4e-05]
[1747292607731,0.22950987,102340.0,102330.0,4e-05]
[1747292607934,0.82070677,102340.0,102330.0,4e-05]
[1747292609026,0.82070677,102340.0,102330.0,0.00018528]
[1747292609238,0.82470677,102340.0,102330.0,0.00018528]
[1747292610320,0.84270677,102340.0,102330.0,0.00018528]
[1747292610528,1.16070677,102340.0,102330.0,0.00018528]
[1747292610734,1.16470677,102340.0,102330.0,0.00118528]
[1747292610950,1.16870677,102340.0,102330.0,0.00118528]
[1747292612305,1.18309084,102340.0,102330.0,0.00118528]
[1747292615171,0.60147291,102310.0,102300.0,0.07735074]
[1747292615297,1.08110231,102310.0,102300.0,0.07749575]
[1747292616811,1.17841171,102310.0,102300.0,0.00114501]
[1747292617478,1.28121171,102310.0,102300.0,0.00214501]
[1747292617689,1.17841171,102310.0,102300.0,0.00214501]
[1747292617894,1.17841171,102310.0,102300.0,0.00114501]
[1747292618068,1.17841171,102310.0,102300.0,0.00014501]
[1747292618271,1.18041171,102310.0,102300.0,0.00114501]
[1747292618480,1.18141171,102310.0,102300.0,0.00114501]
[1747292620389,1.18651288,102310.0,102300.0,0.00114501]
[1747292622674,1.18643288,102310.0,102300.0,0.00114501]
[1747292626295,0.80419288,102310.0,102300.0,0.00114501]
[1747292626496,0.99531288,102310.0,102300.0,0.00114501]
[1747292626704,0.70688348,102310.0,102300.0,0.00114501]
[1747292626932,0.32044263,102310.0,102300.0,0.03334501]
[1747292627143,0.51156263,102310.0,102300.0,0.11069575]
[1747292627349,0.32044263,102310.0,102300.0,0.11069575]
[1747292627562,0.2133595,102310.0,102300.0,0.12047092]
[1747292627783,0.2133595,102310.0,102300.0,0.11069575]
[1747292628410,0.22790035,102310.0,102300.0,0.11069575]
[1747292628617,0.22590035,102310.0,102300.0,0.10969575]
[1747292628740,0.22590035,102310.0,102300.0,0.11069575]
[1747292629343,0.22490035,102310.0,102300.0,0.11069575]
[1747292629589,0.22490035,102310.0,102300.0,0.11169575]
[1747292630381,0.22490035,102310.0,102300.0,0.03434501]
[1747292630861,0.32220975,102310.0,102300.0,0.03434501]
[1747292631156,0.32220975,102310.0,102300.0,0.00214501]
[1747292632267,0.75075366,102310.0,102300.0,0.00214501]
[1747292632468,0.78245366,102310.0,102300.0,0.00214501]
[1747292633285,0.66220975,102310.0,102300.0,0.00214501]
[1747292633716,1.04440975,102310.0,102300.0,0.00114501]
[1747292633948,0.66220975,102310.0,102300.0,0.00114501]
[1747292634125,0.3096689,102310.0,102300.0,0.01624501]
[1747292634353,0.3096689,102310.0,102300.0,0.03204501]
[1747292634354,0.3106689,102310.0,102300.0,0.03204501]
[1747292634485,0.32520975,102310.0,102300.0,0.03204501]
[1747292635483,0.32520975,102310.0,102300.0,0.00114501]
[1747292637916,0.32520975,102310.0,102300.0,0.03324501]
[1747292638123,0.32320975,102310.0,102300.0,0.03224501]
[1747292638575,0.32220975,102310.0,102300.0,0.03224501]
[1747292638980,0.32220975,102310.0,102300.0,0.03324501]
[1747292644381,0.32220975,102310.0,102300.0,0.00114501]
[1747292644604,0.51320975,102310.0,102300.0,0.00114501]
[1747292644829,0.54049559,102310.0,102300.0,0.00114501]
[1747292645042,0.22490035,102310.0,102300.0,0.03194501]
[1747292645269,0.01487452,102310.0,102300.0,0.3438985]
[1747292645495,0.00510117,102310.0,102300.0,0.3438985]
[1747292645726,0.00510117,102310.0,102300.0,1.1633279]
[1747292646242,0.03908767,102330.0,102320.0,0.25598382]
[1747292646458,0.05395951,102330.0,102320.0,0.25598382]
[1747292646667,0.05395951,102330.0,102320.0,0.26575669]
[1747292646871,0.06850036,102330.0,102320.0,0.26575669]
[1747292647079,0.00509954,102330.0,102320.0,0.31584955]
[1747292647324,0.0246429,102330.0,102320.0,0.31584955]
[1747292647545,0.00509954,102330.0,102320.0,0.31584955]
[1747292647777,0.00709954,102330.0,102320.0,0.31684955]
[1747292647996,0.02664271,102330.0,102320.0,0.31684955]
[1747292648430,0.03641453,102330.0,102320.0,0.31684955]
[1747292648635,0.04818664,102330.0,102320.0,0.27652928]
[1747292648861,0.25617359,102330.0,102320.0,0.0322]
[1747292649107,0.21977911,102320.0,102310.0,0.38156317]
[1747292649300,0.20525833,102310.0,102300.0,0.01544501]
[1747292649545,0.21503225,102310.0,102300.0,0.24699838]
[1747292649763,0.21503225,102310.0,102300.0,0.24699847]
[1747292649936,0.20525833,102310.0,102300.0,0.24699847]
[1747292650374,0.20525833,102310.0,102300.0,0.26654794]
[1747292650560,0.20525833,102310.0,102300.0,0.25677325]
[1747292650713,0.21000605,102320.0,102310.0,0.0302]
[1747292650913,0.21000605,102320.0,102310.0,0.23545852]
[1747292651138,0.22955208,102320.0,102310.0,0.25500647]
[1747292651346,0.29785504,102330.0,102320.0,0.23713826]
[1747292651347,0.2346308,102330.0,102320.0,0.23713826]
[1747292651699,0.2346308,102330.0,102320.0,0.0319]
[1747292651842,0.2346308,102330.0,102320.0,0.23713846]
[1747292652040,0.21508649,102330.0,102320.0,0.0319]
[1747292653237,0.21508649,102330.0,102320.0,0.23713836]
[1747292653449,0.21508649,102330.0,102320.0,0.0319]
[1747292654270,0.20054564,102330.0,102320.0,0.23813846]
[1747292654701,0.20054564,102330.0,102320.0,0.24791162]
[1747292654916,0.01487184,102330.0,102320.0,0.29800476]
[1747292655123,0.22008995,102330.0,102320.0,0.29800476]
[1747292655337,0.01487127,102330.0,102320.0,0.31755013]
[1747292655557,0.02464261,102330.0,102320.0,0.31755013]
[1747292655765,0.03441443,102330.0,102320.0,0.31755013]
[1747292656198,0.03441443,102330.0,102320.0,0.65755013]
[1747292656199,0.01487098,102330.0,102320.0,0.65755013]
[1747292656415,0.03441453,102330.0,102320.0,0.67192391]
[1747292656635,0.03441443,102330.0,102320.0,0.67192391]
[1747292657084,0.02464261,102330.0,102320.0,0.67192391]
[1747292657690,0.00509954,102330.0,102320.0,0.76923331]
[1747292657935,0.01487108,102330.0,102320.0,0.76923331]
[1747292658346,0.00509954,102330.0,102320.0,0.76923331]
[1747292658557,0.01487098,102330.0,102320.0,0.76923331]
[1747292659588,0.03441434,102330.0,102320.0,0.76923331]
[1747292659789,0.23963255,102330.0,102320.0,0.64260567]
[1747292659998,0.23963341,102330.0,102320.0,0.6621517]
[1747292660206,0.22009005,102330.0,102320.0,0.001]
[1747292660417,0.2346309,102330.0,102320.0,0.001]
[1747292662861,0.02464347,102330.0,102320.0,0.19343613]
[1747292663070,0.0246429,102330.0,102320.0,0.25525475]
[1747292663281,0.00509954,102330.0,102320.0,0.42991489]
[1747292663491,0.01487108,102330.0,102320.0,0.76991489]
[1747292663708,0.01487117,102330.0,102320.0,0.76991489]
[1747292663918,0.02464299,102330.0,102320.0,0.76991489]
[1747292664686,0.02464299,102330.0,102320.0,0.96079489]
[1747292665181,0.02464299,102330.0,102320.0,1.00111516]
[1747292665385,0.2298612,102330.0,102320.0,0.91911385]
[1747292665582,0.22986187,102330.0,102320.0,0.79243873]
[1747292665810,0.22986187,102330.0,102320.0,0.6113317]
[1747292666024,0.22986187,102330.0,102320.0,0.60155873]
[1747292666598,0.22986187,102330.0,102320.0,0.61133189]
[1747292667049,0.22009005,102330.0,102320.0,0.34]
[1747292667403,0.22009005,102330.0,102320.0,0.55501162]
[1747292667819,0.22009005,102330.0,102320.0,0.34]
[1747292668930,0.21501143,102320.0,102310.0,0.5550215]
[1747292669146,0.0293191,102320.0,102310.0,0.57456915]
[1747292669368,0.0293191,102320.0,102310.0,0.59106915]
[1747292669576,0.0293191,102320.0,102310.0,0.60696915]
[1747292669777,0.2247843,102320.0,102310.0,0.60696915]
[1747292669989,0.2247843,102320.0,102310.0,0.61674279]
[1747292671124,0.2247843,102320.0,102310.0,0.61974279]
[1747292671348,0.2247843,102320.0,102310.0,0.62174279]
[1747292671780,0.2247843,102320.0,102310.0,0.5924215]
[1747292672007,0.21501143,102320.0,102310.0,0.56002169]
[1747292672432,0.21501143,102320.0,102310.0,0.56979581]
[1747292672638,0.20523846,102320.0,102310.0,0.56979581]
[1747292672868,0.1954652,102320.0,102310.0,0.01476317]
[1747292673116,0.1954652,102320.0,102310.0,0.005]
[1747292674660,0.21000605,102320.0,102310.0,0.005]
[1747292674850,0.24200605,102320.0,102310.0,0.005]
[1747292676938,0.33931545,102320.0,102310.0,0.005]
[1747292679204,0.30731545,102320.0,102310.0,0.005]
[1747292680088,0.21000605,102320.0,102310.0,0.01477421]
[1747292680324,0.21000605,102320.0,102310.0,0.21578431]
[1747292680536,0.21000605,102320.0,102310.0,0.0203]
[1747292681171,0.21000605,102320.0,102310.0,0.005]
[1747292682930,0.21000605,102320.0,102310.0,0.00504]
[1747292685670,0.22570605,102320.0,102310.0,0.00504]
[1747292685865,0.21000605,102320.0,102310.0,0.00504]
[1747292689400,0.21000605,102320.0,102310.0,0.21029843]
[1747292689604,0.21000605,102320.0,102310.0,0.00504]
[1747292691865,0.21654564,102330.0,102310.0,0.25207187]
[1747292692071,0.00509954,102330.0,102320.0,0.25678382]
[1747292692270,0.00509954,102330.0,102320.0,0.29710409]
[1747292692473,0.00509954,102330.0,102320.0,0.77601349]
[1747292692688,0.01487098,102330.0,102320.0,0.77601349]
[1747292692896,0.02464271,102330.0,102320.0,0.77601349]
[1747292694192,0.02464271,102330.0,102320.0,0.77701349]
[1747292694677,0.02464271,102330.0,102320.0,0.77801349]
[1747292695647,0.03441472,102330.0,102320.0,0.77801349]
[1747292695846,0.03441472,102330.0,102320.0,0.79243938]
[1747292698215,0.03441472,102330.0,102320.0,1.13243938]
[1747292699720,0.03441463,102330.0,102320.0,1.13243938]
[1747292700542,0.02464271,102330.0,102320.0,1.13243938]
[1747292700952,0.03441472,102330.0,102320.0,1.13243938]
[1747292701358,0.22008976,102330.0,102320.0,0.61954616]
[1747292701580,0.22008976,102330.0,102320.0,0.76384027]
[1747292701795,0.22008976,102330.0,102320.0,0.002]
[1747292701796,0.23463061,102330.0,102320.0,0.002]
[1747292702022,0.26523061,102330.0,102320.0,0.002]
[1747292702259,0.24993061,102330.0,102320.0,0.002]
[1747292703134,0.25993061,102330.0,102320.0,0.002]
[1747292704270,0.37224001,102330.0,102320.0,0.002]
[1747292705538,0.34194001,102330.0,102320.0,0.002]
[1747292705747,0.35794001,102330.0,102320.0,0.002]
[1747292706393,0.24463061,102330.0,102320.0,0.1974652]
[1747292706654,0.24463061,102330.0,102320.0,0.33553456]
[1747292706655,0.01509954,102330.0,102320.0,0.33553456]
[1747292706875,0.04441472,102330.0,102320.0,0.44894382]
[1747292707098,0.23986073,102330.0,102320.0,0.22416]
[1747292707308,0.23008995,102330.0,102320.0,0.002]
[1747292707532,0.2446308,102330.0,102320.0,0.002]
[1747292708178,0.2446308,102330.0,102320.0,0.1974652]
[1747292708386,0.2446308,102330.0,102320.0,0.20723836]
[1747292708807,0.2446308,102330.0,102320.0,0.1974652]
[1747292709016,0.23485879,102330.0,102320.0,0.002]
[1747292709675,0.23485879,102330.0,102320.0,0.01177326]
[1747292710932,0.23485879,102330.0,102320.0,0.20723846]
[1747292711142,0.23485879,102330.0,102320.0,0.21701162]
[1747292713952,0.23485879,102330.0,102320.0,0.01177326]
[1747292714187,0.23485879,102330.0,102320.0,0.21701162]
[1747292715559,0.23485879,102330.0,102320.0,0.22678468]
[1747292718232,0.02487098,102330.0,102320.0,0.27803014]
[1747292718457,0.04441434,102330.0,102320.0,0.27803014]
[1747292718887,0.01509954,102330.0,102320.0,0.27803014]
[1747292719094,0.02487098,102330.0,102320.0,0.27803014]
[1747292719441,0.03464261,102330.0,102320.0,0.27803014]
[1747292719907,0.01509954,102330.0,102320.0,0.27803014]
[1747292720334,0.02487108,102330.0,102320.0,0.27803014]
[1747292721155,0.03464281,102330.0,102320.0,0.27803014]
[1747292721363,0.03464281,102330.0,102320.0,0.29256221]
[1747292722614,0.04441482,102330.0,102320.0,0.29256221]
[1747292722839,0.04441473,102330.0,102320.0,0.29256221]
[1747292723521,0.04441473,102330.0,102320.0,0.48320221]
[1747292723755,0.27166083,102330.0,102320.0,0.01653207]
[1747292723984,0.27643052,102330.0,102320.0,0.002]
[1747292724454,0.37373992,102330.0,102320.0,0.002]
[1747292725651,0.03464357,102330.0,102320.0,0.21701123]
[1747292725877,0.23008967,102330.0,102320.0,0.21701123]
[1747292726104,0.03464309,102330.0,102320.0,0.22678382]
[1747292726324,0.0444152,102330.0,102320.0,0.25898382]
[1747292726539,0.2496335,102330.0,102320.0,0.24921123]
[1747292726750,0.23986187,102330.0,102320.0,0.24921123]
[1747292726983,0.23008995,102330.0,102320.0,0.24921142]
[1747292727186,0.23008995,102330.0,102320.0,0.2589842]
[1747292727395,0.22031784,102330.0,102320.0,0.24921142]
[1747292727604,0.22031784,102330.0,102320.0,0.26322991]
[1747292728041,0.03464404,102330.0,102320.0,0.28277537]
[1747292728249,0.23009014,102330.0,102320.0,0.28277537]
[1747292728678,0.03464404,102330.0,102320.0,0.28277537]
[1747292729324,0.23009014,102330.0,102320.0,0.28277537]
[1747292729795,0.03464366,102330.0,102320.0,0.28277537]
[1747292730014,0.04441596,102330.0,102320.0,0.28277537]
[1747292730238,0.02487127,102330.0,102320.0,0.29254796]
[1747292730452,0.01509954,102330.0,102320.0,0.72985736]
[1747292732014,0.01509954,102330.0,102320.0,0.72785736]
[1747292732291,0.01,102330.0,102320.0,0.72985736]
[1747292732513,0.01,102330.0,102320.0,0.82519487]
[1747292734441,0.01,102330.0,102320.0,0.74784413]
[1747292734638,0.01,102330.0,102320.0,0.93844413]
[1747292734901,0.01,102330.0,102320.0,1.12908413]
[1747292743482,0.01,102330.0,102320.0,0.93848413]
[1747292743686,0.01,102330.0,102320.0,1.12904413]
[1747292744090,0.01,102330.0,102320.0,0.93848413]
[1747292744295,0.01,102330.0,102320.0,1.12904413]
[1747292745761,0.01,102330.0,102320.0,0.74784413]
[1747292745964,0.01,102330.0,102320.0,1.12904413]
[1747292746754,0.01,102330.0,102320.0,0.74784413]
[1747292747122,0.01,102330.0,102320.0,1.12896413]
[1747292747531,0.04908748,102330.0,102320.0,0.56620413]
[1747292747738,0.07011518,102330.0,102320.0,0.64968214]
[1747292747940,0.07011509,102330.0,102320.0,0.98968214]
[1747292750965,0.05451509,102330.0,102320.0,0.98968214]
[1747292752041,0.05451509,102330.0,102320.0,0.79912214]
[1747292753008,0.01,102330.0,102320.0,0.79912214]
[1747292753419,0.01,102330.0,102320.0,0.81492214]
[1747292753839,0.01,102330.0,102320.0,0.92773154]
[1747292755569,0.01977144,102330.0,102320.0,0.92773154]
[1747292755715,0.01,102330.0,102320.0,0.92773154]
[1747292755926,0.02954317,102330.0,102320.0,0.89643154]
[1747292756140,0.26596176,102330.0,102320.0,0.77957668]
[1747292756326,0.26596176,102330.0,102320.0,0.59878955]
[1747292756533,0.24641821,102330.0,102320.0,0.03400526]
[1747292756741,0.26095906,102330.0,102320.0,0.01901849]
[1747292756945,0.26095906,102330.0,102320.0,0.005]
[1747292757587,0.26095906,102330.0,102320.0,0.01812756]
[1747292757984,0.26095906,102330.0,102320.0,0.005]
[1747292758857,0.26095906,102330.0,102320.0,0.01830374]
[1747292758981,0.26095906,102330.0,102320.0,0.23331517]
[1747292759182,0.26095906,102330.0,102320.0,0.24308823]
[1747292759395,0.27073088,102330.0,102320.0,0.25286101]
[1747292760202,0.01,102330.0,102320.0,0.2626336]
[1747292760403,0.01977144,102330.0,102320.0,0.2626336]
[1747292760601,0.02954317,102330.0,102320.0,0.4531936]
[1747292760802,0.01,102330.0,102320.0,0.4531936]
[1747292761030,0.01977144,102330.0,102320.0,0.4531936]